[Event "Live Chess"]
[Site "Chess.com"]
[Date "2023.05.21"]
[Round "-"]
[White "Supertromp"]
[Black "LaupMiths"]
[Result "0-1"]
[WhiteElo "2165"]
[BlackElo "1818"]
[TimeControl "300"]
[EndTime "22:54:35 PDT"]
[Termination "LaupMiths won by resignation"]

1. e4 {[%clk 0:04:58]} 1... c5 {[%clk 0:04:56.7]} 2. Nf3 {[%clk 0:04:55]} 2...
e6 {[%clk 0:04:54.5]} 3. Qe2 {[%clk 0:04:49.7]} 3... Nc6 {[%clk 0:04:50.5]} 4.
g3 {[%clk 0:04:41.5]} 4... g6 {[%clk 0:04:47.3]} 5. Bg2 {[%clk 0:04:39.9]} 5...
Bg7 {[%clk 0:04:46.1]} 6. O-O {[%clk 0:04:38.9]} 6... Nge7 {[%clk 0:04:42.1]} 7.
d3 {[%clk 0:04:37.7]} 7... O-O {[%clk 0:04:40.4]} 8. c3 {[%clk 0:04:32.6]} 8...
e5 {[%clk 0:04:38.8]} 9. Be3 {[%clk 0:04:27.1]} 9... d6 {[%clk 0:04:37.8]} 10.
Nbd2 {[%clk 0:04:15.8]} 10... h6 {[%clk 0:04:35.1]} 11. a4 {[%clk 0:03:37.5]}
11... f5 {[%clk 0:04:31.9]} 12. Nc4 {[%clk 0:03:27.2]} 12... f4 {[%clk
0:04:28.1]} 13. Bd2 {[%clk 0:03:19.6]} 13... g5 {[%clk 0:04:25.1]} 14. b4 {[%clk
0:03:06.2]} 14... g4 {[%clk 0:04:19.7]} 15. Nh4 {[%clk 0:02:51.5]} 15... f3
{[%clk 0:04:16.7]} 16. Nxf3 {[%clk 0:02:45.7]} 16... gxf3 {[%clk 0:04:16.6]} 17.
Bxf3 {[%clk 0:02:45.5]} 17... Bh3 {[%clk 0:04:13.3]} 18. Rfb1 {[%clk 0:02:39.7]}
18... Ng6 {[%clk 0:04:07.9]} 19. bxc5 {[%clk 0:02:35.5]} 19... dxc5 {[%clk
0:04:07.8]} 20. Rxb7 {[%clk 0:02:34.3]} 20... Rb8 {[%clk 0:04:05.8]} 21. Rab1
{[%clk 0:02:19.4]} 21... Qf6 {[%clk 0:04:03.1]} 22. Rxb8 {[%clk 0:02:06.5]}
22... Nxb8 {[%clk 0:03:58.5]} 23. Bg2 {[%clk 0:02:02.9]} 23... Bxg2 {[%clk
0:03:55.2]} 24. Kxg2 {[%clk 0:02:01.9]} 24... Nc6 {[%clk 0:03:47.4]} 25. Be3
{[%clk 0:02:00.9]} 25... Rb8 {[%clk 0:03:38.5]} 26. Rxb8+ {[%clk 0:01:57.9]}
26... Nxb8 {[%clk 0:03:38.4]} 27. Bxc5 {[%clk 0:01:57.1]} 27... Qg5 {[%clk
0:03:25.7]} 28. Be3 {[%clk 0:01:35.3]} 28... Qe7 {[%clk 0:03:19.3]} 29. Qg4
{[%clk 0:01:28.7]} 29... Kh7 {[%clk 0:03:15.5]} 30. h4 {[%clk 0:01:25.1]} 30...
Nc6 {[%clk 0:03:10.6]} 31. h5 {[%clk 0:01:24.1]} 31... Nf8 {[%clk 0:03:04.4]}
32. Qf5+ {[%clk 0:01:22.9]} 32... Kh8 {[%clk 0:03:01.1]} 33. g4 {[%clk
0:01:03.8]} 33... Qe6 {[%clk 0:02:49.8]} 34. Qf3 {[%clk 0:01:02.8]} 34... Nd7
{[%clk 0:02:43]} 35. g5 {[%clk 0:00:58.1]} 35... hxg5 {[%clk 0:02:38.6]} 36.
Bxg5 {[%clk 0:00:58]} 36... Bh6 {[%clk 0:02:31.2]} 37. Bxh6 {[%clk 0:00:51.5]}
37... Qxh6 {[%clk 0:02:30.1]} 38. Ne3 {[%clk 0:00:50.7]} 38... Qg5+ {[%clk
0:02:25]} 39. Ng4 {[%clk 0:00:49.6]} 39... Qxh5 {[%clk 0:02:10.5]} 40. Qg3
{[%clk 0:00:46.9]} 40... Ne7 {[%clk 0:02:04.2]} 41. d4 {[%clk 0:00:44.2]} 41...
Ng6 {[%clk 0:01:59.4]} 42. d5 {[%clk 0:00:38]} 42... Nf4+ {[%clk 0:01:57.5]} 43.
Kg1 {[%clk 0:00:31.5]} 43... Ne2+ {[%clk 0:01:54.4]} 0-1

[Event "Live Chess"]
[Site "Chess.com"]
[Date "2023.05.21"]
[Round "-"]
[White "Singapourfeuj"]
[Black "mirandaasilva"]
[Result "1-0"]
[WhiteElo "2211"]
[BlackElo "1653"]
[TimeControl "300"]
[EndTime "22:54:57 PDT"]
[Termination "Singapourfeuj won by checkmate"]

1. d4 {[%clk 0:04:57.7]} 1... d5 {[%clk 0:04:57.8]} 2. c4 {[%clk 0:04:56.4]}
2... e6 {[%clk 0:04:49.3]} 3. Nf3 {[%clk 0:04:55.1]} 3... dxc4 {[%clk
0:04:45.7]} 4. e3 {[%clk 0:04:53.2]} 4... Nf6 {[%clk 0:04:44.1]} 5. Bxc4 {[%clk
0:04:52.4]} 5... Be7 {[%clk 0:04:39.6]} 6. O-O {[%clk 0:04:51.5]} 6... O-O
{[%clk 0:04:37.8]} 7. Qe2 {[%clk 0:04:30.6]} 7... a6 {[%clk 0:04:36.7]} 8. Nc3
{[%clk 0:04:29.4]} 8... Nbd7 {[%clk 0:04:31]} 9. Rd1 {[%clk 0:04:28.1]} 9... Nb6
{[%clk 0:04:28.3]} 10. Bd3 {[%clk 0:04:26.5]} 10... Bd7 {[%clk 0:04:23.9]} 11.
e4 {[%clk 0:04:25.5]} 11... Rc8 {[%clk 0:04:16.8]} 12. h3 {[%clk 0:04:24.5]}
12... c5 {[%clk 0:04:13.2]} 13. d5 {[%clk 0:04:23]} 13... c4 {[%clk 0:04:10.9]}
14. Bc2 {[%clk 0:04:20.4]} 14... exd5 {[%clk 0:03:53]} 15. e5 {[%clk 0:04:19.3]}
15... Ne4 {[%clk 0:03:42.6]} 16. Nxe4 {[%clk 0:04:17]} 16... dxe4 {[%clk
0:03:42.5]} 17. Qxe4 {[%clk 0:04:16]} 17... Bc6 {[%clk 0:03:36.1]} 18. Qxh7#
{[%clk 0:04:13.8]} 1-0

[Event "Live Chess"]
[Site "Chess.com"]
[Date "2023.05.21"]
[Round "-"]
[White "raminguy"]
[Black "nigelst"]
[Result "1-0"]
[WhiteElo "1945"]
[BlackElo "1720"]
[TimeControl "300"]
[EndTime "22:55:08 PDT"]
[Termination "raminguy won by resignation"]

1. d4 {[%clk 0:04:58.2]} 1... Nf6 {[%clk 0:04:58.4]} 2. Nc3 {[%clk 0:04:55.2]}
2... d5 {[%clk 0:04:56.1]} 3. Bf4 {[%clk 0:04:54.6]} 3... Bf5 {[%clk 0:04:48.3]}
4. e3 {[%clk 0:04:51.8]} 4... e6 {[%clk 0:04:46.7]} 5. Nf3 {[%clk 0:04:48.9]}
5... c6 {[%clk 0:04:44.2]} 6. Ne5 {[%clk 0:04:47.1]} 6... Nbd7 {[%clk
0:04:39.6]} 7. g4 {[%clk 0:04:46.2]} 7... Bg6 {[%clk 0:04:32.1]} 8. h4 {[%clk
0:04:45]} 8... h6 {[%clk 0:04:10.9]} 9. Nxg6 {[%clk 0:04:43.1]} 9... fxg6 {[%clk
0:04:09.4]} 10. Qd3 {[%clk 0:04:43]} 10... Kf7 {[%clk 0:04:06.6]} 11. h5 {[%clk
0:04:41.3]} 11... g5 {[%clk 0:03:49.7]} 12. Qg6+ {[%clk 0:04:38.1]} 12... Kg8
{[%clk 0:03:45.7]} 13. Bg3 {[%clk 0:04:24.8]} 13... Qe8 {[%clk 0:03:42.9]} 14.
Qd3 {[%clk 0:04:21.7]} 14... e5 {[%clk 0:03:33.9]} 15. dxe5 {[%clk 0:04:20]}
15... Nxe5 {[%clk 0:03:30.3]} 16. Bxe5 {[%clk 0:04:19.2]} 16... Qxe5 {[%clk
0:03:27.7]} 17. O-O-O {[%clk 0:04:16]} 17... Ne4 {[%clk 0:03:19.8]} 18. Nxe4
{[%clk 0:04:05.9]} 18... dxe4 {[%clk 0:03:06.7]} 19. Qb3+ {[%clk 0:04:03]} 19...
Kh7 {[%clk 0:03:03.9]} 20. Rd4 {[%clk 0:04:00]} 20... Be7 {[%clk 0:02:50.9]} 21.
Rxe4 {[%clk 0:03:58.7]} 21... Qd6 {[%clk 0:02:27.1]} 22. Bd3 {[%clk 0:03:55.8]}
22... g6 {[%clk 0:02:23.1]} 23. hxg6+ {[%clk 0:03:54.1]} 23... Kg7 {[%clk
0:02:21.4]} 24. Re6 {[%clk 0:03:41.3]} 24... Qd8 {[%clk 0:02:11]} 25. Rd1 {[%clk
0:03:37.5]} 25... Qf8 {[%clk 0:02:06.9]} 26. Bf5 {[%clk 0:03:29.9]} 26... Re8
{[%clk 0:02:04.7]} 27. Rd7 {[%clk 0:03:27.6]} 27... h5 {[%clk 0:01:51.2]} 28.
Qxb7 {[%clk 0:03:22.3]} 28... hxg4 {[%clk 0:01:41.7]} 29. Rexe7+ {[%clk
0:03:21]} 29... Rxe7 {[%clk 0:01:40.4]} 30. Rxe7+ {[%clk 0:03:20.3]} 30... Kg8
{[%clk 0:01:35.1]} 31. Be6+ {[%clk 0:03:09.3]} 1-0

[Event "Live Chess"]
[Site "Chess.com"]
[Date "2023.05.21"]
[Round "-"]
[White "Tushinskiy"]
[Black "omisoc"]
[Result "0-1"]
[WhiteElo "2195"]
[BlackElo "2164"]
[TimeControl "300"]
[EndTime "22:55:09 PDT"]
[Termination "omisoc won by checkmate"]

1. d4 {[%clk 0:04:57.5]} 1... Nf6 {[%clk 0:04:56.8]} 2. c3 {[%clk 0:04:57.4]}
2... g6 {[%clk 0:04:54.1]} 3. Nf3 {[%clk 0:04:56.9]} 3... Bg7 {[%clk 0:04:52.7]}
4. Bf4 {[%clk 0:04:56.1]} 4... d6 {[%clk 0:04:50.2]} 5. Bg3 {[%clk 0:04:56]}
5... O-O {[%clk 0:04:44.9]} 6. Nbd2 {[%clk 0:04:55.9]} 6... c5 {[%clk
0:04:41.4]} 7. e3 {[%clk 0:04:54.8]} 7... Qb6 {[%clk 0:04:37.6]} 8. Nc4 {[%clk
0:04:53.2]} 8... Qc7 {[%clk 0:04:35.9]} 9. Bd3 {[%clk 0:04:52.2]} 9... Be6
{[%clk 0:04:31]} 10. Ncd2 {[%clk 0:04:50.2]} 10... Qb6 {[%clk 0:04:27.6]} 11.
Qb1 {[%clk 0:04:48.8]} 11... Nc6 {[%clk 0:04:25]} 12. O-O {[%clk 0:04:47.4]}
12... cxd4 {[%clk 0:04:23.3]} 13. exd4 {[%clk 0:04:46.2]} 13... Nh5 {[%clk
0:04:19]} 14. Re1 {[%clk 0:04:43.5]} 14... Nxg3 {[%clk 0:04:16.8]} 15. hxg3
{[%clk 0:04:43.4]} 15... Rfe8 {[%clk 0:04:07.8]} 16. Nc4 {[%clk 0:04:41.3]}
16... Qc7 {[%clk 0:04:06.1]} 17. Ne3 {[%clk 0:04:39.7]} 17... d5 {[%clk
0:03:57.8]} 18. Ng5 {[%clk 0:04:36.8]} 18... Qd6 {[%clk 0:03:50.7]} 19. Nxe6
{[%clk 0:04:34.5]} 19... Qxe6 {[%clk 0:03:49.4]} 20. f4 {[%clk 0:04:32.5]} 20...
Qd6 {[%clk 0:03:45.3]} 21. Ng4 {[%clk 0:04:27.7]} 21... f5 {[%clk 0:03:28.5]}
22. Nf2 {[%clk 0:04:26.3]} 22... e6 {[%clk 0:03:18.9]} 23. Re2 {[%clk
0:04:24.9]} 23... g5 {[%clk 0:03:17.1]} 24. Nh3 {[%clk 0:04:22.2]} 24... Nxd4
{[%clk 0:03:05]} 25. cxd4 {[%clk 0:04:20.3]} 25... Bxd4+ {[%clk 0:03:03.6]} 26.
Kh2 {[%clk 0:04:16.8]} 26... g4 {[%clk 0:03:00.9]} 27. Nf2 {[%clk 0:04:13.2]}
27... Rac8 {[%clk 0:02:51.1]} 28. Qd1 {[%clk 0:04:10.2]} 28... Qb6 {[%clk
0:02:44.8]} 29. Qd2 {[%clk 0:03:57]} 29... Rc6 {[%clk 0:02:31]} 30. Rae1 {[%clk
0:03:55.2]} 30... Rec8 {[%clk 0:02:29.1]} 31. a3 {[%clk 0:03:44.6]} 31... Qb3
{[%clk 0:02:06.9]} 32. Bxf5 {[%clk 0:03:40.8]} 32... Bxf2 {[%clk 0:02:01.4]} 33.
Bxe6+ {[%clk 0:03:26.9]} 33... Rxe6 {[%clk 0:01:58.7]} 34. Rxe6 {[%clk 0:03:26]}
34... Qxg3+ {[%clk 0:01:56.7]} 35. Kh1 {[%clk 0:03:24]} 35... Qh4# {[%clk
0:01:55.5]} 0-1

[Event "Live Chess"]
[Site "Chess.com"]
[Date "2023.05.21"]
[Round "-"]
[White "ProfPoisson"]
[Black "Conradical12"]
[Result "0-1"]
[WhiteElo "1120"]
[BlackElo "1626"]
[TimeControl "300"]
[EndTime "22:55:18 PDT"]
[Termination "Conradical12 won by checkmate"]

1. e4 {[%clk 0:04:55.5]} 1... e5 {[%clk 0:04:58.3]} 2. Nf3 {[%clk 0:04:50.9]}
2... Nc6 {[%clk 0:04:57.4]} 3. d4 {[%clk 0:04:48.1]} 3... exd4 {[%clk
0:04:55.3]} 4. Bc4 {[%clk 0:04:47.6]} 4... Nf6 {[%clk 0:04:53.5]} 5. e5 {[%clk
0:04:45.1]} 5... Ng4 {[%clk 0:04:51.8]} 6. Ng5 {[%clk 0:04:37]} 6... d6 {[%clk
0:04:46.3]} 7. Nxf7 {[%clk 0:04:32.4]} 7... Qh4 {[%clk 0:04:40.2]} 8. g3 {[%clk
0:03:55]} 8... Qh3 {[%clk 0:04:35]} 9. Nxh8 {[%clk 0:03:48.2]} 9... Qg2 {[%clk
0:04:17.7]} 10. Bf7+ {[%clk 0:03:39.4]} 10... Kd8 {[%clk 0:04:14.2]} 11. Rf1
{[%clk 0:03:22.9]} 11... Nxh2 {[%clk 0:04:06.8]} 12. Bg5+ {[%clk 0:03:12.3]}
12... Be7 {[%clk 0:04:03.9]} 13. Bxe7+ {[%clk 0:02:53.8]} 13... Kxe7 {[%clk
0:04:00]} 14. Bc4 {[%clk 0:02:51.3]} 14... Bg4 {[%clk 0:03:40]} 15. exd6+ {[%clk
0:02:40.8]} 15... Kd7 {[%clk 0:03:33]} 16. Be2 {[%clk 0:02:05.5]} 16... Re8
{[%clk 0:03:27.1]} 17. dxc7 {[%clk 0:01:54.5]} 17... Nf3# {[%clk 0:03:24.5]} 0-1

[Event "Live Chess"]
[Site "Chess.com"]
[Date "2023.05.21"]
[Round "-"]
[White "BillythekidFellowes"]
[Black "Bakunian2022"]
[Result "1-0"]
[WhiteElo "2032"]
[BlackElo "760"]
[TimeControl "300"]
[EndTime "22:55:41 PDT"]
[Termination "BillythekidFellowes won on time"]

1. e4 {[%clk 0:04:58.4]} 1... g6 {[%clk 0:04:47.6]} 2. Nf3 {[%clk 0:04:56]} 2...
Bg7 {[%clk 0:04:46]} 3. d4 {[%clk 0:04:55.3]} 3... d6 {[%clk 0:04:41.8]} 4. Bc4
{[%clk 0:04:53.6]} 4... Nf6 {[%clk 0:04:40.2]} 5. Nc3 {[%clk 0:04:51.2]} 5...
O-O {[%clk 0:04:39.1]} 6. O-O {[%clk 0:04:50.4]} 6... Nbd7 {[%clk 0:04:35.4]} 7.
Be3 {[%clk 0:04:48.1]} 7... b6 {[%clk 0:04:33.3]} 8. e5 {[%clk 0:04:45.8]} 8...
dxe5 {[%clk 0:04:31.3]} 9. dxe5 {[%clk 0:04:45.7]} 9... Ne8 {[%clk 0:04:28]} 10.
e6 {[%clk 0:04:44.4]} 10... fxe6 {[%clk 0:04:04.5]} 11. Bxe6+ {[%clk 0:04:44.3]}
11... Kh8 {[%clk 0:04:03.1]} 12. Qd5 {[%clk 0:04:42.6]} 12... Rb8 {[%clk
0:03:36]} 13. Rfd1 {[%clk 0:04:31.6]} 13... Nef6 {[%clk 0:03:27.2]} 14. Qb5
{[%clk 0:04:14.2]} 14... a6 {[%clk 0:03:09.2]} 15. Qa4 {[%clk 0:04:02.7]} 15...
Qe8 {[%clk 0:02:58.3]} 16. Nh4 {[%clk 0:03:53.8]} 16... Nc5 {[%clk 0:02:44.2]}
17. Bxc5 {[%clk 0:03:47.5]} 17... Qxa4 {[%clk 0:02:32.7]} 18. Nxa4 {[%clk
0:03:47.4]} 18... Bxe6 {[%clk 0:02:30.5]} 19. Bxe7 {[%clk 0:03:45.4]} 19... Rfe8
{[%clk 0:02:18.8]} 20. Bxf6 {[%clk 0:03:24.2]} 20... Bxf6 {[%clk 0:02:16.8]} 21.
Nf3 {[%clk 0:03:23.3]} 21... b5 {[%clk 0:01:53.6]} 22. Nc5 {[%clk 0:03:19.2]}
22... Bxb2 {[%clk 0:01:46.6]} 23. Rab1 {[%clk 0:02:57.8]} 23... Bg7 {[%clk
0:01:43]} 24. Nxa6 {[%clk 0:02:53]} 24... Bf5 {[%clk 0:01:23.2]} 25. Nxb8 {[%clk
0:02:49.3]} 25... Bxc2 {[%clk 0:01:21.7]} 26. Nc6 {[%clk 0:02:47.2]} 26... Bxb1
{[%clk 0:01:19.4]} 27. Rxb1 {[%clk 0:02:46.4]} 27... Bf8 {[%clk 0:00:50.5]} 28.
Rxb5 {[%clk 0:02:43.5]} 28... Re2 {[%clk 0:00:39.6]} 29. g3 {[%clk 0:02:26.2]}
29... Rxa2 {[%clk 0:00:35.3]} 30. Rb8 {[%clk 0:02:23.1]} 30... Kg7 {[%clk
0:00:27.3]} 31. Nfd4 {[%clk 0:02:19.8]} 31... Bd6 {[%clk 0:00:17.4]} 32. h4
{[%clk 0:02:12.8]} 32... Ra1+ {[%clk 0:00:12.6]} 33. Kg2 {[%clk 0:02:11.1]}
33... Rd1 {[%clk 0:00:09]} 34. h5 {[%clk 0:02:03.8]} 34... Rd2 {[%clk
0:00:08.2]} 35. hxg6 {[%clk 0:02:01.8]} 35... hxg6 {[%clk 0:00:07.5]} 36. Rd8
{[%clk 0:01:54.6]} 36... Bc5 {[%clk 0:00:05.9]} 37. Ne6+ {[%clk 0:01:53.2]}
37... Kf7 {[%clk 0:00:04.1]} 38. Nxc5 {[%clk 0:01:48.9]} 38... Rxd8 {[%clk
0:00:01.5]} 39. Nxd8+ {[%clk 0:01:48.8]} 39... Ke7 {[%clk 0:00:00.9]} 40. Ndb7
{[%clk 0:01:48.7]} 1-0

[Event "Live Chess"]
[Site "Chess.com"]
[Date "2023.05.21"]
[Round "-"]
[White "Nazar_777"]
[Black "Doge_Dandolo"]
[Result "0-1"]
[WhiteElo "1619"]
[BlackElo "1910"]
[TimeControl "300"]
[EndTime "22:56:31 PDT"]
[Termination "Doge_Dandolo won by checkmate"]

1. e3 {[%clk 0:04:58.9]} 1... g6 {[%clk 0:04:57.8]} 2. h4 {[%clk 0:04:53.5]}
2... Bg7 {[%clk 0:04:49.2]} 3. a3 {[%clk 0:04:52.2]} 3... d6 {[%clk 0:04:44.6]}
4. c4 {[%clk 0:04:51]} 4... c5 {[%clk 0:04:42.6]} 5. Nc3 {[%clk 0:04:49.9]} 5...
Nc6 {[%clk 0:04:41]} 6. Nf3 {[%clk 0:04:48.7]} 6... Rb8 {[%clk 0:04:39.7]} 7.
Be2 {[%clk 0:04:47.7]} 7... a6 {[%clk 0:04:38.2]} 8. Qc2 {[%clk 0:04:47.1]} 8...
Nf6 {[%clk 0:04:33.4]} 9. b3 {[%clk 0:04:45.8]} 9... Bf5 {[%clk 0:04:31.6]} 10.
Bd3 {[%clk 0:04:44.4]} 10... Bxd3 {[%clk 0:04:29.7]} 11. Qxd3 {[%clk 0:04:43.4]}
11... Ng4 {[%clk 0:04:25.8]} 12. Qc2 {[%clk 0:04:41.5]} 12... Nge5 {[%clk
0:04:23.6]} 13. Bb2 {[%clk 0:04:40.3]} 13... Nxf3+ {[%clk 0:04:21.8]} 14. gxf3
{[%clk 0:04:39.4]} 14... e6 {[%clk 0:04:17.6]} 15. Rc1 {[%clk 0:04:38.5]} 15...
b5 {[%clk 0:04:06.2]} 16. cxb5 {[%clk 0:04:36.6]} 16... axb5 {[%clk 0:04:03.8]}
17. Ne4 {[%clk 0:04:35.2]} 17... Bxb2 {[%clk 0:04:01.1]} 18. Qxb2 {[%clk
0:04:33.9]} 18... e5 {[%clk 0:03:58.5]} 19. b4 {[%clk 0:04:25.1]} 19... f5
{[%clk 0:03:50.3]} 20. Ng5 {[%clk 0:04:22.1]} 20... Qe7 {[%clk 0:03:42.5]} 21.
bxc5 {[%clk 0:04:19.6]} 21... dxc5 {[%clk 0:03:40.1]} 22. Qc3 {[%clk 0:04:18.5]}
22... c4 {[%clk 0:03:34.4]} 23. f4 {[%clk 0:04:13.2]} 23... Rf8 {[%clk
0:03:14.4]} 24. d3 {[%clk 0:04:10.8]} 24... exf4 {[%clk 0:03:08.7]} 25. dxc4
{[%clk 0:04:05.4]} 25... fxe3 {[%clk 0:03:07]} 26. fxe3 {[%clk 0:04:03]} 26...
bxc4 {[%clk 0:03:01.4]} 27. Rh3 {[%clk 0:03:53.2]} 27... Rb3 {[%clk 0:02:58.5]}
28. Qxc4 {[%clk 0:03:35.5]} 28... Rxe3+ {[%clk 0:02:56.5]} 29. Rxe3 {[%clk
0:03:33]} 29... Qxe3+ {[%clk 0:02:55]} 30. Kf1 {[%clk 0:03:30.7]} 30... Kd8
{[%clk 0:02:17.2]} 31. Ne6+ {[%clk 0:03:17.6]} 31... Ke7 {[%clk 0:02:13.1]} 32.
Nxf8 {[%clk 0:03:13]} 32... Qf3+ {[%clk 0:02:10.4]} 33. Ke1 {[%clk 0:03:07.5]}
33... Qe3+ {[%clk 0:01:59.6]} 34. Kd1 {[%clk 0:03:02.9]} 34... Kxf8 {[%clk
0:01:53.1]} 35. Qxc6 {[%clk 0:02:59.4]} 35... Kg7 {[%clk 0:01:48.4]} 36. a4
{[%clk 0:02:55.1]} 36... Qd3+ {[%clk 0:01:45.1]} 37. Ke1 {[%clk 0:02:52.5]}
37... Qg3+ {[%clk 0:01:43.7]} 38. Kf1 {[%clk 0:02:49.1]} 38... Qh3+ {[%clk
0:01:41.7]} 39. Qg2 {[%clk 0:02:42.3]} 39... Qd3+ {[%clk 0:01:38.8]} 40. Kg1
{[%clk 0:02:37.3]} 40... Qe3+ {[%clk 0:01:37.2]} 41. Kh2 {[%clk 0:02:27.8]}
41... Qxc1 {[%clk 0:01:34.6]} 42. a5 {[%clk 0:02:26.6]} 42... Qc7+ {[%clk
0:01:32.8]} 43. Kh3 {[%clk 0:02:14.2]} 43... Qxa5 {[%clk 0:01:30.8]} 44. Kg3
{[%clk 0:02:05]} 44... Qc3+ {[%clk 0:01:29]} 45. Kf4 {[%clk 0:02:01.1]} 45...
Qc7+ {[%clk 0:01:26.6]} 46. Kg5 {[%clk 0:01:57.7]} 46... h6# {[%clk 0:01:22.1]}
0-1

[Event "Live Chess"]
[Site "Chess.com"]
[Date "2023.05.21"]
[Round "-"]
[White "MaximKhimchenko"]
[Black "Duke_of_Bebington"]
[Result "1-0"]
[WhiteElo "1406"]
[BlackElo "1574"]
[TimeControl "300"]
[EndTime "22:56:44 PDT"]
[Termination "MaximKhimchenko won by checkmate"]

1. e4 {[%clk 0:04:59.1]} 1... e5 {[%clk 0:04:58.4]} 2. Nf3 {[%clk 0:04:59]} 2...
Nf6 {[%clk 0:04:56.5]} 3. d4 {[%clk 0:04:58.7]} 3... Nxe4 {[%clk 0:04:54.9]} 4.
dxe5 {[%clk 0:04:57.9]} 4... d5 {[%clk 0:04:54]} 5. c4 {[%clk 0:04:56.1]} 5...
Bc5 {[%clk 0:04:45.6]} 6. Be3 {[%clk 0:04:52.4]} 6... Bxe3 {[%clk 0:04:42.7]} 7.
fxe3 {[%clk 0:04:52.3]} 7... Bg4 {[%clk 0:04:32.3]} 8. Qxd5 {[%clk 0:04:48.9]}
8... Bxf3 {[%clk 0:04:25.4]} 9. gxf3 {[%clk 0:04:48.8]} 9... Qh4+ {[%clk
0:04:22.4]} 10. Ke2 {[%clk 0:04:43.3]} 10... Qf2+ {[%clk 0:04:18.3]} 11. Kd3
{[%clk 0:04:40.2]} 11... Nc6 {[%clk 0:04:00.4]} 12. Kxe4 {[%clk 0:04:33.9]}
12... Qxb2 {[%clk 0:03:53.8]} 13. Bh3 {[%clk 0:04:30.7]} 13... Rd8 {[%clk
0:03:41.3]} 14. Qb5 {[%clk 0:04:17.2]} 14... Qxa1 {[%clk 0:03:32.3]} 15. Rg1
{[%clk 0:04:15.8]} 15... O-O {[%clk 0:03:27.7]} 16. e6 {[%clk 0:04:06.2]} 16...
Rfe8 {[%clk 0:03:03.3]} 17. Qg5 {[%clk 0:03:56.6]} 17... Qxa2 {[%clk 0:02:39.4]}
18. Qxg7# {[%clk 0:03:50.6]} 1-0

[Event "Live Chess"]
[Site "Chess.com"]
[Date "2023.05.21"]
[Round "-"]
[White "Biranidun"]
[Black "WilliamofOrange16th"]
[Result "1-0"]
[WhiteElo "2553"]
[BlackElo "1840"]
[TimeControl "300"]
[EndTime "22:56:52 PDT"]
[Termination "Biranidun won by resignation"]

1. e4 {[%clk 0:04:58.5]} 1... d6 {[%clk 0:04:58.4]} 2. d4 {[%clk 0:04:57]} 2...
Nf6 {[%clk 0:04:57.5]} 3. Nc3 {[%clk 0:04:56]} 3... Nbd7 {[%clk 0:04:57]} 4. Nf3
{[%clk 0:04:52.8]} 4... e5 {[%clk 0:04:56.2]} 5. Bc4 {[%clk 0:04:52.1]} 5... Be7
{[%clk 0:04:55.1]} 6. O-O {[%clk 0:04:51.7]} 6... O-O {[%clk 0:04:54.6]} 7. a4
{[%clk 0:04:51.1]} 7... a5 {[%clk 0:04:52.8]} 8. h3 {[%clk 0:04:50]} 8... c6
{[%clk 0:04:52.4]} 9. Re1 {[%clk 0:04:49.1]} 9... Nb6 {[%clk 0:04:50.1]} 10. Ba2
{[%clk 0:04:46.6]} 10... Nfd7 {[%clk 0:04:46.9]} 11. Be3 {[%clk 0:04:45.4]}
11... exd4 {[%clk 0:04:44.9]} 12. Nxd4 {[%clk 0:04:44.5]} 12... Nc5 {[%clk
0:04:43.9]} 13. Qh5 {[%clk 0:04:39.2]} 13... g6 {[%clk 0:04:34.3]} 14. Qh6
{[%clk 0:04:36.6]} 14... Bf6 {[%clk 0:04:27.4]} 15. Rad1 {[%clk 0:04:34.6]}
15... Bg7 {[%clk 0:04:25.4]} 16. Qf4 {[%clk 0:04:33.2]} 16... Qe7 {[%clk
0:04:22]} 17. Qg3 {[%clk 0:03:19.7]} 17... h6 {[%clk 0:03:35.9]} 18. Bf4 {[%clk
0:03:05]} 18... Rd8 {[%clk 0:03:34.8]} 19. Nf3 {[%clk 0:02:55.1]} 19... Ne6
{[%clk 0:03:07.4]} 20. Bxd6 {[%clk 0:02:49.7]} 20... Qe8 {[%clk 0:03:06.7]} 21.
e5 {[%clk 0:02:48.3]} 21... Bd7 {[%clk 0:02:52.1]} 22. Bb3 {[%clk 0:02:45.7]}
22... Nc8 {[%clk 0:02:45.8]} 23. Ba3 {[%clk 0:02:41.5]} 23... b5 {[%clk
0:02:42.2]} 24. axb5 {[%clk 0:02:38.5]} 24... cxb5 {[%clk 0:02:41.6]} 25. Bd6
{[%clk 0:02:32.7]} 25... Bc6 {[%clk 0:02:27.2]} 26. Nd5 {[%clk 0:02:27.5]} 26...
Nxd6 {[%clk 0:02:19.4]} 27. exd6 {[%clk 0:02:27.4]} 27... Bxd5 {[%clk 0:02:13]}
28. Bxd5 {[%clk 0:02:26.3]} 28... Ra6 {[%clk 0:02:11.1]} 29. Bxe6 {[%clk
0:02:21.7]} 29... fxe6 {[%clk 0:02:10.6]} 30. d7 {[%clk 0:02:19]} 30... Rxd7
{[%clk 0:02:02.7]} 31. Rxd7 {[%clk 0:02:18.9]} 31... Qxd7 {[%clk 0:02:02.1]} 32.
Qxg6 {[%clk 0:02:17.8]} 32... Qf7 {[%clk 0:01:59.9]} 33. Qd3 {[%clk 0:02:14.3]}
33... Qf5 {[%clk 0:01:36.9]} 34. Qd8+ {[%clk 0:02:08]} 34... Kh7 {[%clk
0:01:35.1]} 35. c3 {[%clk 0:02:05.9]} 35... b4 {[%clk 0:01:31.9]} 36. cxb4
{[%clk 0:02:01.6]} 36... axb4 {[%clk 0:01:31.1]} 37. Qd7 {[%clk 0:01:58.4]}
37... Qd5 {[%clk 0:01:23.9]} 38. Qf7 {[%clk 0:01:51.6]} 38... Qf5 {[%clk
0:01:21.3]} 39. Qb7 {[%clk 0:01:49.4]} 39... Qd3 {[%clk 0:01:12.5]} 40. Qxb4
{[%clk 0:01:44.6]} 40... Rd6 {[%clk 0:01:10.4]} 41. b3 {[%clk 0:01:37.9]} 41...
Bc3 {[%clk 0:01:06.8]} 42. Qe4+ {[%clk 0:01:37.3]} 42... Qxe4 {[%clk 0:01:05.6]}
43. Rxe4 {[%clk 0:01:37.2]} 43... Rd1+ {[%clk 0:00:57.9]} 44. Kh2 {[%clk
0:01:36.2]} 44... Rb1 {[%clk 0:00:57.2]} 45. Rxe6 {[%clk 0:01:34.2]} 45... Ba5
{[%clk 0:00:50.9]} 46. Re3 {[%clk 0:01:31.3]} 46... Bc7+ {[%clk 0:00:48.8]} 47.
g3 {[%clk 0:01:30.3]} 47... Rb2 {[%clk 0:00:47.7]} 48. Re7+ {[%clk 0:01:26.1]}
1-0